Cogmind - Beta 13 *** ADVENTURER MODE // 2024.04.03 @ 14:25:05 Player: Tsubaki Result: Destroyed by YI-UF0 with YI-UF0's Doublenader Performance ------------- Evolutions (1) 500 Regions Visited (3) 600 Robots Destroyed (27) 135 Value Destroyed (739) 739 Prototype IDs (2) 40 Alien Tech Used (0) 0 Bonus (22) 22 TOTAL SCORE: 2036 Bonus ------- High Alert Combat Kills 22 Cogmind --------- Core Integrity 0/400 Matter 296/300 Energy 100/100 System Corruption 0% Temperature Cool (0) Movement Core (350) Ox6 Location -9/Mines Parts ------- > --- POWER (1) -------- (None) > --- PROPULSION (3) --- (None) > --- UTILITY (3) ------ Medium Storage Unit Medium Storage Unit Advanced Targeting Computer > --- WEAPON (2) ------- (None) > --- INVENTORY (10) --- Light Treads Light Treads Light Treads Experimental Sensor Array Advanced Targeting Computer ECM Suite Core Shielding Peak State ------------ > --- POWER ------------ Improved Ion Engine > --- PROPULSION ------- Aluminum Leg Aluminum Leg Improved Aluminum Leg > --- UTILITY ---------- Medium Storage Unit Medium Storage Unit Sensor Array > --- WEAPON ----------- Heavy Assault Rifle Katana > --- INVENTORY -------- Light Treads Light Treads Advanced Targeting Computer Advanced Targeting Computer ECM Suite Core Shielding EM Shotgun Assault Rifle Heavy Assault Rifle Datajack [Rating: 15] Favorites ----------- Power Improved Ion Engine Engine Improved Ion Engine Propulsion Aluminum Leg Treads Light Treads Leg Aluminum Leg Wheel Compact Wheel Utility Medium Storage Unit Device Sensor Array Storage Medium Storage Unit Processor Advanced Targeting Computer Weapon Assault Rifle Energy Gun Medium Laser Ballistic Gun Assault Rifle Slashing Weapon Katana Special Melee Weapon Datajack Build | -11 -10 -9 -9 ------- Run | Yrd Mat Mat Min Slots Evolved 2 | . . 2 . Power . | . . . . Propulsion 1 | . . 1 . Utility 1 | . . 1 . Weapon . | . . . . Parts Attached 35 | 8 5 19 3 Power 4 | 1 1 2 . Engine 4 | 1 1 2 . Core . | . . . . Reactor . | . . . . Propulsion 9 | 3 . 6 . Treads 4 | . . 4 . Leg 4 | 2 . 2 . Wheel 1 | 1 . . . Hover . | . . . . Flight . | . . . . Utility 5 | 1 2 2 . Device 1 | . . 1 . Storage 3 | 1 2 . . Processor 1 | . . 1 . Hackware . | . . . . Protection . | . . . . Artifact . | . . . . Weapon 17 | 3 2 9 3 Energy Gun 3 | 2 . . 1 Energy Cannon . | . . . . Ballistic Gun 11 | 1 2 7 1 Ballistic Cannon . | . . . . Launcher . | . . . . Special Weapon . | . . . . Impact Weapon . | . . . . Slashing Weapon 1 | . . 1 . Piercing Weapon . | . . . . Special Melee Weapon 2 | . . 1 1 Unidentified Prototypes . | . . . . Parts Lost 10 | . . 2 8 Power 1 | . . . 1 Propulsion 3 | . . . 3 Utility 1 | . . 1 . Weapon 5 | . . 1 4 Highest Loss Streak 8 | . . 1 8 To Critical Strikes . | . . . . Average Slot Usage (%) 98 | . 99 99 94 Engine 12 | . 14 11 11 Treads 11 | . . 9 31 Leg 19 | . 28 23 . Device 4 | . . 9 . Storage 23 | . 27 22 22 Processor 3 | . . 1 11 Energy Gun 3 | . 10 . . Ballistic Gun 18 | . 16 21 17 Naked Turns . | . . . . Heaviest Build 34 | 13 29 34 32 Greatest Support 60 | 20 20 60 60 Greatest Overweight (x) 8 | . 1 1 8 Average Overweight (x) . | . . . . Largest Inventory Capacity 10 | 8 10 10 10 Average Capacity 9 | 7 9 10 10 Most Carried 10 | 7 10 10 9 Average Carried 8 | 5 7 9 8 Final Capacity 10 | 8 10 10 10 Final Carried 10 | 6 10 9 7 Class Distribution -------------------- 88% | Mutant 11% | Scavenger-Mutant Dominant Class ---------------- Mutant | -10/Materials Mutant | -9/Materials Mutant | -9/Mines Resources | -11 -10 -9 -9 ----------- Run | Yrd Mat Mat Min Matter Collected 916 | 251 107 475 83 Remotely . | . . . . Salvage Created 941 | . 113 792 36 Parts 59 | . 7 50 2 Haulers Intercepted . | . . . . Recyclers Shooed . | . . . . Parts Field Recycled . | . . . . Retrieved Matter . | . . . . Parts Self-Destructed . | . . . . Prevented . | . . . . Kills | -11 -10 -9 -9 ------- Run | Yrd Mat Mat Min Combat Hostiles Destroyed 26 | . 4 20 2 Melee 1 | . . 1 . Guns 25 | . 4 19 2 Classes Destroyed 5 | . 2 3 . Watcher 1 | . . 1 . Swarmer 11 | . 2 7 2 Grunt 7 | . 2 5 . Duelist 1 | . . 1 . Sentry 7 | . . 7 . Best Kill Streak 5 | . 2 5 2 Combat Bots Only 5 | . 2 5 2 Max Kills in Single Turn 1 | . 1 1 1 Gunslinging . | . . . . Exploded . | . . . . Melee 1 | . . 1 . Uniques/NPCs Destroyed . | . . . . Combat | -11 -10 -9 -9 -------- Run | Yrd Mat Mat Min Hostile Shots Fired 176 | . 18 119 39 Missed 41 | . 5 31 5 Damage Taken 1846 | . 98 943 805 Core 402 | . . 143 259 Absorbed by Shields . | . . . . Ignored by Resistances 528 | . 34 272 222 Core Remaining (%) 100 | 100 100 . . Volleys Fired 78 | . 14 56 8 Largest 2 | . 2 2 2 Hottest 70 | . 70 46 45 Shots Fired 152 | . 28 110 14 Gun 152 | . 28 110 14 Cannon . | . . . . Launcher . | . . . . Special . | . . . . Kinetic 144 | . 22 110 12 Thermal 6 | . 6 . . Explosive . | . . . . Electromagnetic 2 | . . . 2 Robot Hit Streak 24 | . 15 24 7 Robot Miss Streak 2 | . 1 2 1 Penetration Max . | . . . . Secondary Targets 3 | . 1 2 . Max Gunslinging Chain 1 | . 1 1 . Shots Hit Robots 122 | . 21 91 10 Core Hits 44 | . 5 35 4 Critical Kills . | . . . . Critical Parts Destroyed 1 | . . 1 . Critical Strikes 1 | . . 1 . Destroy 1 | . . 1 . Melee Attacks 2 | . . 2 . Impact . | . . . . Slashing 1 | . . 1 . Piercing . | . . . . Sneak Attacks 1 | . . 1 . Combat Hostiles . | . . . . Follow-up Attacks . | . . . . Damage Inflicted 1668 | . 263 1279 126 Guns 1634 | . 263 1245 126 Cannons . | . . . . Explosions . | . . . . Melee 34 | . . 34 . Ramming . | . . . . Kinetic 1548 | . 201 1245 102 Thermal 62 | . 62 . . Explosive . | . . . . Electromagnetic 24 | . . . 24 Impact . | . . . . Slashing 34 | . . 34 . Piercing . | . . . . Highest Corruption . | . . . . Average Corruption . | . . . . Corruption Purged . | . . . . Corruption Blocked . | . . . . Overload Shots . | . . . . Overflow Damage . | . . . . Projectiles . | . . . . Explosions . | . . . . Melee . | . . . . Knockbacks . | . . . . Impact . | . . . . Kinetic . | . . . . Secondary . | . . . . Self-Inflicted Damage . | . . . . Shots . | . . . . Rammed . | . . . . Targets Rammed . | . . . . Kicked . | . . . . Crushed . | . . . . Highest Temperature 80 | . 80 20 . Average Temperature 19 | . 30 4 . Received Heat Transfer 363 | . 48 315 . Siege Activations . | . . . . Robots Corrupted . | . . . . Combat Hostiles . | . . . . Parts Fried . | . . . . Impact Corruptions . | . . . . Robots Melted . | . . . . Combat Hostiles . | . . . . Parts Melted . | . . . . Heat Transferred 185 | . 185 . . Parts Sabotaged . | . . . . Parts Stolen . | . . . . Parts Stripped . | . . . . Power Chain Reactions . | . . . . Alert | -11 -10 -9 -9 ------- Run | Yrd Mat Mat Min Peak Influence 436 | . 77 436 193 Initial 143 | . . 19 143 Average 122 | . 26 198 142 Maximum Alert Level 2 | . . 2 . Low Security (%) 79 | 100 100 51 100 Level 1 15 | . . 36 . Level 2 4 | . . 11 . Level 3 . | . . . . Level 4 . | . . . . Level 5 . | . . . . High Security . | . . . . Max Security . | . . . . Squads Dispatched 2 | . 1 1 . Investigation 1 | . 1 . . Extermination . | . . . . Reinforcement 1 | . . 1 . Assault . | . . . . Garrison . | . . . . Intercept . | . . . . Searches Triggered . | . . . . Construction Impeded . | . . . . Haulers Reinforced . | . . . . Active Scanning Responses . | . . . . Cargo Convoy Interrupts . | . . . . Stealth | -11 -10 -9 -9 --------- Run | Yrd Mat Mat Min Distress Signals 2 | . . 2 . Communications Jammed . | . . . . Distress Signals . | . . . . Times Spotted 38 | . 8 26 4 Peak Tracking Total 5 | . 3 5 3 Tactical Retreats 3 | . . 3 . Traps | -11 -10 -9 -9 ------- Run | Yrd Mat Mat Min Traps Triggered 2 | . 1 1 . Indirectly . | . . . . Trap Hack Attempts . | . . . . Triggered . | . . . . Disarmed . | . . . . Reprogrammed . | . . . . Reused . | . . . . Traps Extracted . | . . . . Installed . | . . . . Triggered . | . . . . Machines | -11 -10 -9 -9 ---------- Run | Yrd Mat Mat Min Machines Disabled . | . . . . Max in Single Turn . | . . . . Machines Repaired . | . . . . Machines Dismantled . | . . . . Machines Sabotaged . | . . . . Overloaded Fab Kills . | . . . . Hacking | -11 -10 -9 -9 --------- Run | Yrd Mat Mat Min Machines Accessed 6 | . 5 1 . Terminals 6 | . 5 1 . Fabricators . | . . . . Repair Stations . | . . . . Recycling Units . | . . . . Scanalyzers . | . . . . Garrison Access . | . . . . Total Hacks 8 | . 6 2 . Successful 6 | . 5 1 . Failed 2 | . 1 1 . Catastrophic . | . . . . Database Lockouts . | . . . . Manual . | . . . . Terminals 8 | . 6 2 . Fabricators . | . . . . Repair Stations . | . . . . Recycling Units . | . . . . Scanalyzers . | . . . . Garrison Access . | . . . . Terminal Hacks 6 | . 5 1 . Record 1 | . . 1 . Robot Analysis 1 | . 1 . . Prototype ID Bank 1 | . 1 . . Hauler Manifests 1 | . 1 . . Zone Layout 2 | . 2 . . Fabricator Hacks . | . . . . Repair Station Hacks . | . . . . Recycling Unit Hacks . | . . . . Scanalyzer . | . . . . Garrison Access Hacks . | . . . . Unauthorized Hacks . | . . . . Terminals . | . . . . Fabricators . | . . . . Repair Stations . | . . . . Recycling Units . | . . . . Scanalyzers . | . . . . Garrison Access . | . . . . Data Cores Recovered . | . . . . Used . | . . . . Hacking Detections 2 | . 1 1 . Full Trace Events . | . . . . Feedback Events . | . . . . Feedback Blocked . | . . . . Robot Schematics Acquired . | . . . . Robots Built . | . . . . Authchips . | . . . . Time . | . . . . Total Robot Build Rating . | . . . . Part Schematics Acquired . | . . . . Parts Built . | . . . . Authchips . | . . . . Time . | . . . . Total Part Build Rating . | . . . . Parts Repaired . | . . . . Time . | . . . . Parts Recycled . | . . . . Recycled Matter . | . . . . Retrieved Matter . | . . . . Retrieved Components . | . . . . Parts Scanalyzed . | . . . . Part Schematics Acquired . | . . . . Parts Damaged . | . . . . Bothacking | -11 -10 -9 -9 ------------ Run | Yrd Mat Mat Min Used RIF Installer . | . . . . Robots Hacked 1 | . . 1 . Non-combat 1 | . . 1 . Combat . | . . . . Robot Hacks Applied 1 | . . 1 . no_distress 1 | . . 1 . Relay Couplers Released . | . . . . Fabnet Peak Effective % . | . . . . Robots Rewired . | . . . . Allies Hacked . | . . . . Hacks Repelled . | . . . . Allies | -11 -10 -9 -9 -------- Run | Yrd Mat Mat Min Total Allies . | . . . . Largest Group . | . . . . Highest-Rated Group . | . . . . Highest-Rated Ally . | . . . . Total Orders . | . . . . Ally Attacks . | . . . . Total Damage . | . . . . Kills . | . . . . Allies Corrupted . | . . . . Allies Melted . | . . . . Intel | -11 -10 -9 -9 ------- Run | Yrd Mat Mat Min Robot Analysis Total 1 | . 1 . . Derelict Logs Recovered . | . . . . Drone Launches . | . . . . Drone Recoveries . | . . . . Exploration | -11 -10 -9 -9 ------------- Run | Yrd Mat Mat Min Turns Passed 1886 | 74 610 789 413 Spaces Moved 910 | 60 286 329 235 Core 23 | 20 . . 3 Treads 306 | . . 74 232 Legs 568 | 27 286 255 . Wheels 13 | 13 . . . Hover . | . . . . Flight . | . . . . Fastest Speed 50 | 50 120 120 160 Average Speed 157 | 92 188 137 163 Slowest Speed 450 | 120 190 190 450 Overloaded Moves . | . . . . Propulsion Burnouts . | . . . . Robots Hopped . | . . . . Cave-ins Triggered . | . . . . Exploration Rate (%) 36 | 5 63 35 44 Regions Visited 3 Branch Regions 1 Pre-discovered Areas . | . . . . Known Exits Taken . | . . . . Unknown Exits Taken 3 | 1 1 1 . Scrap Searched . | . . . . Spaces Dug . | . . . . Terrain Destroyed . | . . . . Melee . | . . . . Projectile . | . . . . AOE . | . . . . Terrain Rammed . | . . . . Walls Destroyed . | . . . . Machines Disabled . | . . . . Actions | -11 -10 -9 -9 --------- Run | Yrd Mat Mat Min Total 1214 | 75 332 556 251 Wait 143 | . 11 128 4 Move 907 | 59 285 328 235 Hop . | . . . . Pick Up 28 | 8 10 9 1 Fast Attach 7 | 4 2 1 . Attach 10 | 2 1 4 3 Detach . | . . . . Swap 18 | 2 2 14 . Drop 21 | . 7 14 . Fire 78 | . 14 56 8 Melee 2 | . . 2 . Ram . | . . . . Kick . | . . . . Crush . | . . . . Escape Stasis . | . . . . Rewire . | . . . . Trap . | . . . . Miscellaneous . | . . . . Route ------- -11/Scrapyard -10/Materials (discovered 3 exits: *Mat x2 / [*Min]) -9/Materials (discovered 2 exits: [*Mat] / [*Min]) -9/Mines History --------- Turn | Location | Event 3 | -11/Scrapyard | Discovered new exit (range 15) 75 | -11/Scrapyard | Entered Materials 272 | -10/Materials | Discovered new exit (range 3) 302 | -10/Materials | Build established: Mutant 484 | -10/Materials | Discovered new exit (range 11) 572 | -10/Materials | Discovered new exit (range 16) 685 | -10/Materials | Entered another Materials area 685 | -9/Materials | Evolved 2 slots: Propulsion x1, Utility x1 1109 | -9/Materials | Discovered new exit (range 4) 1406 | -9/Materials | Discovered new exit (range 14) 1474 | -9/Materials | Entered Mines 1611 | -9/Mines | Found a damaged Exp. Sensor Array with a note attached 1615 | -9/Mines | Found Prototype Device 1647 | -9/Mines | Assembled infested the area 1862 | -9/Mines | Core integrity fell below 50% 1881 | -9/Mines | Core integrity fell below 20% 1887 | -9/Mines | Destroyed by YI-UF0 with YI-UF0's Doublenader Last Messages --------------- 01862_ The unstable cave ceiling collapses. 01863_ Assault Rifle destroyed. 01865_ The unstable cave ceiling collapses. 01866_ T-07 Excavator destroyed. 01866_ Hvy. Assault Rifle destroyed. 01868_ K-01 Serf destroyed. 01870_ Lgt. Treads destroyed. 01870_ YI-UF0: "BOOSH!" 01870_ R-06 Scavenger destroyed. 01872_ Lgt. Treads destroyed. 01873_ The unstable cave ceiling collapses. 01874_ Datajack destroyed. 01875_ The unstable cave ceiling collapses. 01876_ EM Shotgun destroyed. 01879_ The unstable cave ceiling collapses. 01880_ Imp. Ion Engine destroyed. 01882_ The unstable cave ceiling collapses. 01884_ YI-UF0 mumbles something. 01884_ The unstable cave ceiling collapses. 01884_ U-05 Engineer lays Concrete. Map ----- +----------------------------------------------------+ | ????????# #??# #####?? ### ?## ## ##### | | ????????# #### #??????# ##???#?### ### | | ????????# ## #??????####????????## #??# | | ????????# # #????????????# ###### ##?## | | ????????# # ###???#####????# #??## # | | ????????# # ####### #???######### #???## # | | ????????# | #??????????# #????## # | | ???????## ##### ???????????# #?????# | | ???????# ##???# #?????????# #?????# | | ???????# ##???# ##???????# #?????## # | | ???????## #???? #??????## ###????# ## | | ????????# / #???? #????#### ######## #? | | ???????# ##???? #????# # #? | | ???????#! = *#####?????# #???# # #? | | ??????# ###?????????# ######## #########? | | ??????# !##??????????## #????????? | | ??????## #???????????# #????????? | | ???????####???????????# ###### #####????????? | | ??????????????????????## g #????####????????????? | | ?????????????????????## ##???????????????????? | | ?????????????????????# #???????????????????? | | ???????????????####### ##??????????????????? | | ???????????????# #??????????????????? | | ???????????????# ### #??????????????????? | | ???????????????#[#?# #??????????????????? | | ?????????# ### ### @ #??????????????????? | | ?????????# = g#???????????????? | | ????????# ### ## % #???????????????? | | ???????# ???# # #???????????????? | | ???????? ????# % #???????????????? | | ??????# ?????# ?????????????? | | ??????# ??????# # ???????????? | | ????? #???????## # u ???????????? | | ???? ??????????#### r ???????????? | | ???? ???????????????# # ???????????? | | ????????????????????## ######### ????????????? | | ?????????????????????##### #?????????????????????? | | ?????????????????????????? #?????????????????????? | | ?????????????????????????? #?????????????????????? | | ?????????????????????????? ?????????????????????? | | ??????????????????????????##?????????????????????? | | ?????????????????????????????????????????????????? | | ?????????????????????????????????????????????????? | | ?????????????????????????????????????????????????? | | ?????????????????????????????????????????????????? | | ?????????????????????????????????????????????????? | | ?????????????????????????????????????????????????? | | ?????????????????????????????????????????????????? | | ?????????????????????????????????????????????????? | | ?????????????????????????????????????????????????? | +----------------------------------------------------+ Best States ------------- Heat Dissipation 28 Energy Generation 12 Energy Capacity 265 Matter Stores 300 Matter Capacity 300 Sight Range 16 Robot Scan Range 14 Terrain Scan Density 10 Resistance: KI 20 Resistance: TH 20 Resistance: EX 20 Resistance: EM 20 Resistance: I 20 Resistance: S 20 Resistance: P 20 Evasion (%) 55 Targeting Accuracy 8 Recoil Reduction 3 Offensive Hacking 10 Item Schematics ----------------- None Robot Schematics ------------------ None Fabricated ------------ Nothing Alien Tech Used ----------------- None Achievements -------------- Shopping List Challenges ------------ None Game ------ Seed ChargeThermicPick Manual? 0 Play Time 00:28:13 Cumulative 12.9 hours Start 2024.04.03 @ 14:00:05 End 2024.04.03 @ 14:25:05 Sessions 1 Manual Loads 0 Difficulty Adventurer Special Mode None Game No. 7 Rogue 0 Adventurer 7 Explorer 0 Win Type - Total 0 Types 0/0/0/0/0/0/0/0/0 Lore% 19 Gallery% 17 Achievement% 19 Wizard Run 0 Options --------- Layout 0 ASCII 0 Keyboard 0 Movement Mouse Keybinds 0 Fullscreen 2 Font 24/Smallcaps Map View 113x50 Zoom Use 0% Tactical HUD 1 Map Filters NONE Filters NONE Steam 1 RUN: 6af6fe55-d9b5-42a9-a922-6c5cc8971484